bitfinex/quotes_BTCUSD_20230403
["timestamp","ask_amount","ask_price","bid_price","bid_amount"]
[1680543439800,0.0504012,28031.0,28030.0,0.94421956]
[1680543440456,0.1357012,28031.0,28030.0,0.55048156]
[1680543440664,0.1357012,28031.0,28030.0,0.17112]
[1680543440880,0.0504012,28028.0,28027.0,0.00018]
[1680543441131,0.0504012,28028.0,28020.0,0.017844]
[1680543441132,0.37721877,28031.0,28030.0,3.7972918]
[1680543441352,0.0852,28031.0,28030.0,3.8253518]
[1680543441574,0.0852,28031.0,28030.0,4.54568036]
[1680543441793,0.078746,28032.0,28030.0,3.9685318]
[1680543442033,0.0849,28031.0,28030.0,3.9685318]
[1680543442240,0.0859,28031.0,28030.0,3.8253518]
[1680543442470,0.0849,28031.0,28030.0,3.7973518]
[1680543443431,0.102219,28031.0,28030.0,3.8253518]
[1680543443652,0.078746,28032.0,28031.0,0.017781]
[1680543443880,0.176329,28032.0,28031.0,0.017781]
[1680543444990,0.165046,28032.0,28031.0,0.045781]
[1680543445220,0.164046,28032.0,28031.0,0.017781]
[1680543445669,0.165046,28032.0,28031.0,0.045781]
[1680543446106,0.001,28032.0,28031.0,0.58944856]
[1680543446339,0.001,28032.0,28031.0,1.01305556]
[1680543446614,0.04939103,28035.0,28031.0,1.28523556]
[1680543446834,0.04939103,28035.0,28033.0,1.5259]
[1680543447058,0.04939103,28035.0,28034.0,0.45447056]
[1680543447263,0.067399,28039.0,28034.0,0.58992056]
[1680543447485,0.067399,28039.0,28035.0,0.046615]
[1680543447486,0.0849,28039.0,28035.0,0.046615]
[1680543447728,0.0849,28039.0,28035.0,0.189014]
[1680543447947,0.0849,28039.0,28036.0,0.217861]
[1680543448165,0.0849,28039.0,28037.0,0.049061]
[1680543448377,0.0849,28039.0,28037.0,0.17112]
[1680543448582,0.0849,28039.0,28038.0,0.17112]
[1680543448831,0.0849,28039.0,28037.0,0.00018]
[1680543449061,0.07260907,28040.0,28036.0,0.189134]
[1680543449062,0.0849,28038.0,28036.0,0.189134]
[1680543449247,0.0853,28037.0,28036.0,0.1713]
[1680543449452,0.0853,28037.0,28036.0,0.048026]
[1680543449669,0.0853,28037.0,28036.0,0.17112]
[1680543449888,0.0853,28037.0,28036.0,0.96748656]
[1680543450107,0.0853,28037.0,28036.0,0.60175256]
[1680543450360,0.02299,28040.0,28036.0,0.61958656]
[1680543450564,0.02299,28040.0,28038.0,0.36290079]
[1680543450791,0.02299,28040.0,28039.0,0.83046256]
[1680543451026,0.02299,28040.0,28039.0,1.00170256]
[1680543451716,0.02299,28040.0,28039.0,1.25170256]
[1680543452366,0.02299,28040.0,28039.0,1.27770256]
[1680543452828,0.02299,28040.0,28039.0,1.30570256]
[1680543453016,0.02299,28040.0,28039.0,1.25170256]
[1680543453247,0.02299,28040.0,28039.0,1.26020256]
[1680543453456,0.02299,28040.0,28039.0,1.28820256]
[1680543453681,0.02299,28040.0,28039.0,1.26020256]
[1680543453892,0.02280814,28040.0,28039.0,1.28802256]
[1680543454158,0.02280814,28040.0,28039.0,1.58802256]
[1680543454387,0.02280814,28040.0,28039.0,2.02988229]
[1680543454388,8.14e-06,28040.0,28039.0,2.02988229]
[1680543454608,8.14e-06,28040.0,28039.0,3.5279674]
[1680543454826,8.14e-06,28040.0,28039.0,3.6132074]
[1680543455041,8.14e-06,28040.0,28039.0,3.6132674]
[1680543455273,8.14e-06,28040.0,28039.0,3.4266074]
[1680543455498,8.14e-06,28040.0,28039.0,3.4345274]
[1680543455705,8.14e-06,28040.0,28039.0,3.4625874]
[1680543456159,8.14e-06,28040.0,28039.0,3.4345274]
[1680543456372,8.14e-06,28040.0,28039.0,3.4625274]
[1680543457026,0.0015,28042.0,28041.0,1.2759]
[1680543457243,0.0015,28042.0,28041.0,4.10790867]
[1680543457456,0.07219009,28047.0,28046.0,0.7]
[1680543457457,0.00675023,28047.0,28046.0,0.7]
[1680543457682,0.00675023,28047.0,28046.0,4.45960868]
[1680543457957,0.02299,28051.0,28048.0,0.3759]
[1680543458185,0.02299,28051.0,28048.0,1.14072556]
[1680543458430,0.02299,28051.0,28048.0,2.76478219]
[1680543458675,0.02299,28051.0,28048.0,3.21478219]
[1680543459130,0.02299,28051.0,28048.0,1.93172556]
[1680543459352,0.0844,28063.0,28048.0,1.93172556]
[1680543459353,0.02299,28066.0,28062.0,0.7]
[1680543459578,0.02317,28066.0,28065.0,1.0759]
[1680543459801,0.02317,28066.0,28065.0,0.047018]
[1680543459802,0.02299,28066.0,28065.0,0.047018]
[1680543460024,0.02299,28066.0,28065.0,0.17094]
[1680543460260,0.02317,28066.0,28065.0,0.35471056]
[1680543460480,0.02299,28066.0,28065.0,0.52565056]
[1680543460707,0.02299,28066.0,28065.0,0.17094]
[1680543460918,0.02299,28066.0,28065.0,0.57000056]
[1680543461132,0.02317,28066.0,28065.0,0.77496056]
[1680543461368,0.02317,28066.0,28065.0,0.96652056]
[1680543461607,0.02299,28066.0,28065.0,1.68229556]
[1680543461841,0.04038857,28071.0,28069.0,0.20682186]
[1680543462066,0.00198,28072.0,28069.0,0.56153242]
[1680543462287,0.0018,28072.0,28070.0,0.93900156]
[1680543462515,0.0018,28072.0,28071.0,0.421819]
[1680543462745,0.0018,28072.0,28071.0,1.63582956]
[1680543462968,0.0018,28072.0,28071.0,1.61193956]
[1680543463203,0.0018,28072.0,28071.0,1.50663956]
[1680543463435,0.0018,28072.0,28071.0,0.776689]
[1680543463656,0.0018,28072.0,28071.0,0.776989]
[1680543463873,0.0018,28072.0,28071.0,0.75382]
[1680543464090,0.0018,28072.0,28071.0,0.7543]
[1680543464091,0.1372,28072.0,28071.0,0.7543]
[1680543464345,0.1372,28072.0,28071.0,0.028]
[1680543464638,0.156101,28072.0,28069.0,0.20700186]
[1680543464844,0.0018,28072.0,28071.0,0.028]
[1680543465067,0.1372,28072.0,28069.0,0.26358186]
[1680543465284,0.1372,28072.0,28071.0,0.028]
[1680543465285,0.0018,28072.0,28071.0,0.028]
[1680543465500,0.0018,28072.0,28071.0,0.38271056]
[1680543465763,0.0018,28072.0,28071.0,0.43701056]
[1680543465945,0.0018,28072.0,28071.0,0.43707056]
[1680543466170,0.0018,28072.0,28070.0,0.05514]
[1680543466384,0.1372,28072.0,28070.0,0.40967056]
[1680543466625,0.1372,28072.0,28070.0,0.40949056]
[1680543466827,0.1372,28072.0,28071.0,0.05478]
[1680543467051,0.1372,28072.0,28071.0,0.08102]
[1680543467260,0.1372,28072.0,28071.0,0.05496]
[1680543467482,0.1372,28072.0,28071.0,0.05484]
[1680543467694,0.1372,28072.0,28070.0,0.35471056]
[1680543467899,0.1372,28072.0,28071.0,0.026]
[1680543468343,0.1372,28072.0,28071.0,0.02606]
[1680543468568,0.1372,28072.0,28071.0,0.026]
[1680543468988,0.43013823,28078.0,28071.0,0.026]
[1680543469193,0.1354,28072.0,28071.0,0.026]
[1680543469414,0.1354,28075.0,28071.0,1.16032165]
[1680543469673,0.13558,28078.0,28073.0,0.3759]
[1680543469898,0.1354,28078.0,28074.0,0.73061056]
[1680543470123,0.1354,28078.0,28073.0,0.37608]
[1680543470355,0.1304,28078.0,28075.0,0.17088]
[1680543470563,0.1304,28078.0,28073.0,0.02818]
[1680543470772,0.27229681,28078.0,28072.0,0.22033465]
[1680543470990,0.14189681,28077.0,28074.0,0.17088]
[1680543471210,0.13058,28078.0,28074.0,0.17088]
[1680543471426,0.1304,28078.0,28074.0,0.17088]
[1680543472868,0.1304,28078.0,28074.0,0.028]
[1680543473102,0.1304,28078.0,28073.0,0.17106]
[1680543473321,0.1304,28078.0,28074.0,0.4039]
[1680543473574,0.1304,28078.0,28074.0,0.57478]
[1680543473800,0.1304,28078.0,28074.0,0.92949056]
[1680543474019,0.1354,28075.0,28074.0,0.19888]
[1680543474245,0.1354,28075.0,28074.0,0.02818]
[1680543474467,0.1354,28075.0,28074.0,0.028]
[1680543474922,0.1304,28075.0,28074.0,0.028]
[1680543475156,0.1354,28075.0,28074.0,0.028]
[1680543475592,0.1354,28075.0,28073.0,0.17106]
[1680543475815,0.1354,28075.0,28073.0,0.17088]
[1680543476047,0.1354,28075.0,28074.0,0.028]
[1680543477351,0.0354,28075.0,28074.0,0.028]
[1680543478272,0.50819756,28075.0,28074.0,0.028]
[1680543478498,0.52066356,28075.0,28074.0,0.028]
[1680543478722,0.1344,28072.0,28068.0,0.00018]
[1680543479046,0.1347,28069.0,28067.0,0.00018]
[1680543479292,0.018928,28068.0,28067.0,0.00018]
[1680543479543,0.27659681,28069.0,28067.0,0.00018]
[1680543479785,0.1347,28069.0,28067.0,0.00018]
[1680543480273,0.12738209,28069.0,28067.0,0.33115664]
[1680543480517,0.12938209,28069.0,28068.0,0.3759]
[1680543480758,0.002,28069.0,28068.0,0.74396233]
[1680543480992,0.002,28069.0,28068.0,0.78200433]
[1680543481220,0.002,28069.0,28068.0,0.038042]
[1680543481469,0.002,28069.0,28067.0,0.009]
[1680543481470,0.1375,28069.0,28067.0,0.009]
[1680543481701,0.1375,28069.0,28067.0,0.00018]
[1680543481702,0.1355,28069.0,28067.0,0.00018]
[1680543482177,0.1355,28069.0,28066.0,0.70018]
[1680543482398,0.1355,28067.0,28066.0,0.70018]
[1680543483313,0.1355,28067.0,28066.0,0.70918]
[1680543483538,0.1355,28067.0,28066.0,0.70018]
[1680543483776,0.1355,28067.0,28066.0,0.00018]
[1680543484017,0.1355,28067.0,28063.0,0.04993799]
[1680543484018,0.154116,28067.0,28064.0,0.00018]
[1680543484252,0.1355,28065.0,28064.0,0.00018]
[1680543484958,0.1355,28065.0,28064.0,0.009]
[1680543485183,0.1355,28065.0,28063.0,0.00018]
[1680543485429,0.1385,28065.0,28064.0,0.009]
[1680543485668,0.1355,28065.0,28063.0,0.00018]
[1680543485872,0.1355,28065.0,28064.0,0.009]
[1680543485873,0.1385,28065.0,28064.0,0.009]
[1680543486179,0.1355,28065.0,28063.0,0.00018]
[1680543486411,0.1085,28065.0,28064.0,0.009]
[1680543487379,0.1055,28065.0,28062.0,0.70018]
[1680543487614,0.1085,28065.0,28064.0,0.009]
[1680543487890,0.1085,28065.0,28062.0,0.7]
[1680543487891,0.10202818,28065.0,28062.0,0.70018]
[1680543488189,0.015471,28065.0,28064.0,0.009]
[1680543488444,0.1344,28064.0,28062.0,0.7]
[1680543488686,0.018917,28063.0,28062.0,0.00818]
[1680543488937,0.018917,28063.0,28060.0,0.00018]
[1680543489210,1.939,28073.0,28062.0,0.008]
[1680543489211,0.00318,28065.0,28062.0,0.008]
[1680543489461,0.1353,28062.0,28060.0,0.35349676]
[1680543489707,0.1353,28062.0,28060.0,0.00018]
[1680543489964,0.1353,28062.0,28059.0,0.74947299]
[1680543490517,0.1353,28062.0,28061.0,0.40346362]
[1680543490727,0.1353,28062.0,28059.0,0.74947299]
[1680543490728,0.1383,28062.0,28060.0,0.00818]
[1680543490964,0.1353,28062.0,28059.0,0.74947299]
[1680543491205,0.1383,28062.0,28059.0,0.75747299]
[1680543491442,0.1383,28062.0,28059.0,0.74947299]
[1680543491684,0.1353,28062.0,28059.0,0.74947299]
[1680543491925,0.1383,28062.0,28060.0,0.008]
[1680543492173,0.1353,28062.0,28059.0,0.74947299]
[1680543492407,0.1383,28062.0,28059.0,0.75747299]
[1680543492637,0.13815229,28062.0,28059.0,0.75747299]
[1680543493169,0.003,28062.0,28059.0,0.75747299]
[1680543493410,0.003,28062.0,28059.0,0.75729299]
[1680543493638,0.003,28062.0,28059.0,0.74929299]
[1680543493872,0.006,28062.0,28059.0,0.75729299]
[1680543494134,0.003,28062.0,28059.0,0.74929299]
[1680543494382,0.00018,28066.0,28064.0,0.7]
[1680543494623,0.00018,28069.0,28066.0,0.3759]
[1680543494878,0.00018,28073.0,28067.0,0.057595]
[1680543495109,0.00018,28073.0,28072.0,0.7]
[1680543495549,0.00018,28073.0,28068.0,0.00018]
[1680543495829,0.13468,28074.0,28072.0,0.7]
[1680543496062,0.00018,28074.0,28072.0,0.7]
[1680543496302,0.00018,28075.0,28072.0,0.7]
[1680543496524,0.48941056,28073.0,28069.0,0.00018]
[1680543496786,0.13488,28073.0,28068.0,0.028]
[1680543497068,0.27659681,28073.0,28071.0,0.7]
[1680543497295,0.13488,28073.0,28072.0,0.014]
[1680543497525,0.52003556,28073.0,28071.0,0.7]
[1680543497754,0.37351456,28072.0,28068.0,0.72718]
[1680543497994,0.1355,28069.0,28068.0,0.7]
[1680543498264,0.00018,28071.0,28068.0,1.09205277]
[1680543498496,0.143147,28072.0,28068.0,0.70018]
[1680543498947,0.143147,28072.0,28071.0,0.007]
[1680543499175,0.161979,28072.0,28068.0,0.70018]
[1680543499395,0.143147,28072.0,28068.0,0.72718]
[1680543499614,0.143147,28072.0,28068.0,0.70018]
[1680543499843,0.143147,28072.0,28068.0,0.72718]
[1680543500068,0.143147,28072.0,28068.0,0.70018]
[1680543500819,0.13068,28072.0,28068.0,1.11687184]
[1680543501050,0.12849761,28074.0,28071.0,0.7]
[1680543501051,0.00018,28074.0,28071.0,0.7]
[1680543501287,0.1353,28075.0,28074.0,0.7]
[1680543501519,0.1296,28075.0,28074.0,0.70018]
[1680543502189,0.004,28075.0,28074.0,0.70118]
[1680543502447,0.004,28075.0,28074.0,1.05571056]
[1680543502678,0.004,28075.0,28074.0,0.741707]
[1680543502924,0.004,28075.0,28074.0,1.88157416]
[1680543503167,0.21383719,28079.0,28077.0,0.7]
[1680543503397,0.08551958,28079.0,28077.0,0.70018]
[1680543504393,0.21383719,28080.0,28077.0,0.70018]
[1680543505093,0.08551958,28080.0,28077.0,0.70018]
[1680543505371,0.22101958,28078.0,28077.0,0.71418]
[1680543505644,1.50979251,28078.0,28077.0,0.00018]
[1680543505966,1.50534486,28078.0,28077.0,0.02]
[1680543506223,1.50534486,28078.0,28070.0,0.00018]
[1680543506224,0.05154887,28076.0,28070.0,0.00018]
[1680543506484,0.1355,28070.0,28069.0,0.70018]
[1680543506762,0.27739681,28070.0,28069.0,0.70018]
[1680543507027,0.00018,28072.0,28069.0,0.70018]
[1680543507510,0.146967,28073.0,28069.0,0.70018]
[1680543507782,0.019176,28072.0,28069.0,0.70018]
[1680543508318,0.1345,28073.0,28070.0,0.007]
[1680543508541,0.1345,28073.0,28069.0,0.70018]
[1680543508635,0.08533184,28074.0,28070.0,0.35471056]
[1680543508656,0.08533184,28075.0,28069.0,0.70018]
[1680543509046,0.08515184,28075.0,28069.0,0.714]
[1680543509324,0.26460846,28076.0,28072.0,0.7]
[1680543509613,0.05172887,28076.0,28075.0,0.7]
[1680543509891,0.05154887,28076.0,28075.0,0.7]
[1680543510733,0.05154887,28076.0,28075.0,1.44841956]
[1680543511010,0.05154887,28076.0,28075.0,1.48999256]
[1680543511539,0.08533184,28082.0,28081.0,0.8759]
[1680543511760,0.08533184,28082.0,28081.0,1.24841556]
[1680543511761,0.00018,28082.0,28081.0,1.24841556]
[1680543511990,0.02299,28083.0,28081.0,1.26970956]
[1680543512229,0.02299,28083.0,28082.0,0.77064056]
[1680543513139,0.02299,28083.0,28082.0,0.73061056]
[1680543513580,0.02299,28083.0,28081.0,0.50018]
[1680543513821,0.10832184,28086.0,28081.0,0.50018]
[1680543513822,0.02317,28086.0,28085.0,1.07572]
[1680543514064,0.40148552,28086.0,28085.0,0.69982]
[1680543514300,0.40780156,28086.0,28085.0,0.69732]
[1680543514521,0.053091,28086.0,28085.0,0.69732]
[1680543514740,0.052911,28086.0,28085.0,0.69732]
[1680543514990,0.40762156,28086.0,28085.0,0.72532]
[1680543515213,0.40762156,28086.0,28085.0,0.028]
[1680543515214,1.28573198,28086.0,28085.0,0.028]
[1680543515444,0.40018,28083.0,28082.0,0.00018]
[1680543515672,0.40018,28083.0,28080.0,0.04945796]
[1680543515673,1.60745101,28083.0,28080.0,0.04945796]
[1680543515897,0.22048351,28081.0,28077.0,0.00018]
[1680543516135,0.22048351,28081.0,28075.0,0.69732]
[1680543516136,0.5355,28078.0,28075.0,0.00018]
[1680543516392,0.5355,28078.0,28073.0,0.00018]
[1680543516393,0.1355,28076.0,28073.0,0.00018]
[1680543516686,0.105365,28077.0,28071.0,0.69732]
[1680543516687,0.1355,28074.0,28072.0,0.04964534]
[1680543516918,0.19889981,28073.0,28072.0,0.04982534]
[1680543517168,0.057003,28073.0,28072.0,0.04982534]
[1680543517400,0.019602,28073.0,28072.0,0.00018]
[1680543517681,0.147967,28074.0,28072.0,0.00018]
[1680543517943,0.030277,28073.0,28072.0,0.00018]
[1680543518177,0.38498756,28073.0,28072.0,0.00018]
[1680543518405,0.38598756,28073.0,28072.0,0.00018]
[1680543518885,0.43962972,28073.0,28072.0,0.00018]
[1680543519348,0.43962972,28073.0,28068.0,0.00018]
[1680543519593,0.018102,28072.0,28068.0,0.69732]
[1680543519824,0.487404,28071.0,28068.0,0.6975]
[1680543520046,0.0195,28070.0,28068.0,0.6975]
[1680543520503,0.019206,28071.0,28068.0,0.6975]
[1680543520728,0.38638456,28071.0,28070.0,0.69732]
[1680543520982,0.38638456,28071.0,28070.0,0.6975]
[1680543522159,0.019206,28071.0,28070.0,0.6975]
[1680543522382,0.017468,28071.0,28070.0,0.6975]
[1680543522603,0.035609,28071.0,28070.0,0.6975]
[1680543523108,0.41525556,28071.0,28070.0,0.00018]
[1680543523334,0.41525556,28071.0,28069.0,0.00018]
[1680543523586,0.018224,28070.0,28068.0,0.00018]
[1680543523782,0.018224,28070.0,28067.0,0.69732]
[1680543523783,0.030693,28070.0,28067.0,0.69645075]
[1680543524087,0.012469,28070.0,28067.0,0.69645075]
[1680543524580,0.00018,28071.0,28067.0,0.69645075]
[1680543524799,0.012468,28070.0,28067.0,0.69645075]
[1680543525021,0.014468,28070.0,28067.0,0.69645075]
[1680543526153,0.002,28070.0,28067.0,0.69645075]
[1680543526620,0.014468,28070.0,28067.0,0.69645075]
[1680543528224,0.38658696,28070.0,28067.0,0.69645075]
[1680543528445,0.018741,28069.0,28067.0,0.69645075]
[1680543528655,0.38676696,28070.0,28067.0,0.69645075]
[1680543529156,0.35471056,28069.0,28067.0,0.69645075]
[1680543529398,0.00018,28069.0,28067.0,0.69645075]
[1680543529626,0.033211,28069.0,28067.0,0.69645075]
[1680543529868,0.37281756,28068.0,28066.0,0.00018]
[1680543530106,0.37281756,28068.0,28064.0,0.74636149]
[1680543530107,0.642205,28067.0,28064.0,0.74636149]
[1680543530336,0.642205,28067.0,28064.0,0.74642149]
[1680543530337,0.37292956,28066.0,28064.0,0.74642149]
[1680543530569,0.05577,28065.0,28064.0,0.74642149]
[1680543530800,0.38553856,28065.0,28064.0,0.69663075]
[1680543531268,0.38571856,28065.0,28064.0,0.69645075]
[1680543531504,0.37324756,28065.0,28064.0,0.69645075]
[1680543531759,0.38571856,28065.0,28064.0,0.69645075]
[1680543532905,0.37324756,28065.0,28064.0,0.69645075]
[1680543533124,0.38571856,28065.0,28064.0,0.69645075]
[1680543533350,0.44033442,28065.0,28064.0,0.69645075]
[1680543533582,0.38571856,28065.0,28064.0,0.69645075]
[1680543534046,0.38571856,28065.0,28064.0,0.50585784]
[1680543534721,0.57110256,28065.0,28063.0,0.00018]
[1680543534953,0.82308256,28064.0,28062.0,0.50585784]
[1680543535153,0.055987,28063.0,28062.0,0.50603784]
[1680543535415,0.41069756,28063.0,28062.0,0.50603784]
[1680543535651,0.41087756,28063.0,28062.0,0.50585784]
[1680543536332,0.43487756,28063.0,28062.0,0.50585784]
[1680543536552,0.41087756,28063.0,28062.0,0.50585784]
[1680543536840,0.5499643,28063.0,28062.0,0.50585784]
[1680543537096,0.5584643,28063.0,28061.0,0.00018]
[1680543537330,0.45806156,28062.0,28060.0,0.028506]
[1680543537553,0.25433123,28061.0,28060.0,0.028506]
[1680543537790,0.61754179,28061.0,28060.0,0.028506]
[1680543538705,0.70242179,28061.0,28060.0,0.028506]
[1680543539167,0.71342179,28061.0,28060.0,0.028506]
[1680543539410,0.70242179,28061.0,28060.0,0.028506]
[1680543539642,0.72642179,28061.0,28060.0,0.028506]
[1680543540092,0.70224179,28061.0,28060.0,0.028506]
[1680543540316,0.72642179,28061.0,28060.0,0.028506]
[1680543540546,0.72397133,28061.0,28060.0,0.028506]
[1680543541012,1.1178901,28061.0,28060.0,0.028506]
[1680543541211,1.1448901,28061.0,28060.0,0.028506]
[1680543541707,1.08370433,28061.0,28060.0,0.028506]
[1680543541957,1.03878556,28061.0,28060.0,0.028506]
[1680543542183,1.06578556,28061.0,28060.0,0.028506]
[1680543542644,1.71468556,28061.0,28060.0,0.028506]
[1680543542875,2.41971233,28061.0,28060.0,0.028506]
[1680543543079,2.77424054,28061.0,28060.0,0.028506]
[1680543543780,2.74724054,28061.0,28060.0,0.028506]
[1680543544014,2.77424054,28061.0,28060.0,0.028506]
[1680543544242,2.74724054,28061.0,28060.0,0.028506]
[1680543544478,2.94530054,28061.0,28060.0,0.028506]
[1680543544674,2.77424054,28061.0,28060.0,0.028506]
[1680543544940,2.94530054,28061.0,28060.0,0.028506]
[1680543545167,2.77424054,28061.0,28060.0,0.028506]
[1680543545628,2.94530054,28061.0,28060.0,0.028506]
[1680543545824,2.94530054,28061.0,28059.0,3.35635627]
[1680543545825,1.0405,28060.0,28059.0,3.35635627]
[1680543546113,0.59077291,28056.0,28055.0,0.03008305]
[1680543546370,1.92705872,28056.0,28055.0,0.03008305]
[1680543546615,1.92705872,28056.0,28051.0,0.0209]
[1680543546616,1.18127291,28052.0,28051.0,0.0209]
[1680543546850,2.64772001,28052.0,28051.0,0.0209]
[1680543547118,2.5058232,28052.0,28051.0,0.0209]
[1680543547575,2.52374197,28052.0,28051.0,0.0209]
[1680543548021,2.55074197,28052.0,28051.0,0.0209]
[1680543548253,2.52374197,28052.0,28051.0,0.0209]
[1680543548694,2.90074197,28052.0,28051.0,0.0209]
[1680543549931,1.3187152,28052.0,28051.0,0.0209]
[1680543550157,1.3102152,28052.0,28051.0,0.0209]
[1680543550379,1.2832152,28052.0,28051.0,0.0209]
[1680543550606,1.3102152,28052.0,28051.0,0.0209]
[1680543550837,0.056655,28052.0,28051.0,0.0209]
[1680543551068,0.044179,28052.0,28051.0,0.0209]
[1680543551298,0.056655,28052.0,28051.0,0.02108]
[1680543552533,0.065155,28052.0,28051.0,0.02108]
[1680543552776,0.1432161,28052.0,28051.0,0.02108]
[1680543553014,0.1702161,28052.0,28051.0,0.02108]
[1680543553252,0.1432161,28052.0,28051.0,0.02108]
[1680543553523,0.1702161,28052.0,28051.0,0.02108]
[1680543554934,0.8702161,28052.0,28051.0,0.02108]
[1680543555634,1.3202161,28052.0,28051.0,0.02108]
[1680543555868,1.88363487,28052.0,28051.0,0.02108]
[1680543556574,2.09823487,28052.0,28051.0,0.02108]
[1680543557032,2.61160778,28052.0,28051.0,0.02108]
[1680543557299,2.61160778,28052.0,28051.0,0.0209]
[1680543558229,2.23570778,28052.0,28051.0,0.0209]
[1680543558449,1.99410778,28052.0,28051.0,0.0209]
[1680543558688,0.829579,28052.0,28051.0,0.0209]
[1680543558929,0.717179,28052.0,28051.0,0.0209]
[1680543559151,0.756655,28052.0,28051.0,0.0209]
[1680543559380,0.729655,28052.0,28051.0,0.0209]
[1680543559631,0.756655,28052.0,28051.0,0.0209]
[1680543559854,0.8053385,28052.0,28051.0,0.0209]
[1680543560078,0.8323385,28052.0,28051.0,0.02108]
[1680543560310,0.729655,28052.0,28051.0,0.02108]
[1680543560505,0.779562,28052.0,28051.0,0.02108]
[1680543561222,0.790562,28052.0,28051.0,0.02108]
[1680543561446,0.07892,28051.0,28050.0,0.52693784]
[1680543561662,0.135841,28051.0,28050.0,0.52693784]
[1680543562783,0.2354338,28051.0,28050.0,0.52693784]
[1680543563232,0.2439338,28051.0,28050.0,0.52693784]
[1680543563937,0.3179138,28051.0,28050.0,0.42675784]
[1680543564176,1.1618138,28051.0,28050.0,0.42675784]
[1680543564399,1.46173257,28051.0,28049.0,0.44783784]
[1680543564637,1.46173257,28051.0,28049.0,0.44765784]
[1680543564638,0.61162408,28050.0,28049.0,0.44765784]
[1680543564916,0.61162408,28050.0,28049.0,0.44783784]
[1680543564917,1.21460108,28050.0,28049.0,0.44783784]
[1680543565193,0.64219985,28050.0,28049.0,0.44765784]
[1680543565463,0.23948108,28050.0,28049.0,0.44765784]
[1680543565732,0.26648108,28050.0,28049.0,0.44765784]
[1680543565999,0.23948108,28050.0,28049.0,0.44765784]
[1680543566397,0.23801961,28050.0,28049.0,0.44783784]
[1680543566802,0.71501961,28050.0,28049.0,0.44783784]
[1680543566998,0.68801961,28050.0,28049.0,0.41783784]
[1680543567297,0.68819961,28050.0,28049.0,0.25016908]
[1680543567494,0.71519961,28050.0,28049.0,0.25016908]
[1680543567755,0.26519961,28050.0,28049.0,0.25016908]
[1680543568591,1.01519961,28050.0,28049.0,0.25016908]
[1680543569872,0.366839,28050.0,28049.0,0.22016908]
[1680543570009,0.358339,28050.0,28049.0,0.22016908]
[1680543571591,0.366839,28050.0,28049.0,0.22016908]
[1680543572095,0.366839,28050.0,28049.0,0.14124908]
[1680543572328,0.366659,28050.0,28049.0,0.15748577]
[1680543572560,0.459289,28050.0,28049.0,0.15748577]
[1680543573098,0.358159,28050.0,28049.0,0.15748577]
[1680543573903,0.058159,28050.0,28049.0,0.15748577]
[1680543574448,0.045682,28050.0,28049.0,0.15748577]
[1680543574759,0.027,28050.0,28049.0,0.15748577]
[1680543575779,0.027,28050.0,28049.0,0.05748577]
[1680543576215,0.012477,28052.0,28049.0,0.05748577]
[1680543576432,0.005,28050.0,28049.0,0.05748577]
[1680543576669,0.00018,28055.0,28049.0,0.05748577]
[1680543576889,0.06243177,28057.0,28054.0,0.04124908]
[1680543577113,0.02135867,28056.0,28054.0,0.04124908]
[1680543577335,0.02016487,28056.0,28054.0,0.04124908]
[1680543577560,0.02010487,28056.0,28054.0,0.04124908]
[1680543577776,0.012475,28056.0,28054.0,0.04124908]
[1680543578018,0.012475,28056.0,28055.0,0.02521153]
[1680543578253,0.032422,28056.0,28055.0,0.02521153]
[1680543578465,0.012475,28056.0,28055.0,0.02521153]
[1680543579115,0.012475,28056.0,28055.0,0.002]
[1680543579601,0.4,28058.0,28054.0,0.04124908]
[1680543579871,0.018654,28057.0,28054.0,0.04124908]
[1680543580102,0.40907766,28058.0,28055.0,0.02065434]
[1680543580327,0.019767,28057.0,28055.0,0.02265434]
[1680543580555,0.032241,28057.0,28056.0,0.04124908]
[1680543581007,0.019767,28057.0,28056.0,0.04124908]
[1680543581683,0.020767,28057.0,28056.0,0.04124908]
[1680543581928,0.038241,28057.0,28056.0,0.04124908]
[1680543583290,0.33913666,28061.0,28056.0,0.04124908]
[1680543583517,0.03742,28059.0,28056.0,0.04124908]
[1680543583727,0.012686,28058.0,28056.0,0.04124908]
[1680543583951,0.012908,28060.0,28059.0,0.04124908]
[1680543584168,0.025381,28060.0,28059.0,0.04124908]
[1680543584381,0.012908,28060.0,28059.0,0.04124908]
[1680543584607,0.012458,28061.0,28059.0,0.04124908]
[1680543584833,0.02493,28061.0,28059.0,0.04124908]
[1680543585069,0.012472,28061.0,28059.0,0.04124908]
[1680543585304,0.027,28060.0,28059.0,0.04224908]
[1680543585538,0.012472,28061.0,28059.0,0.04124908]
[1680543585794,0.023472,28061.0,28059.0,0.04224908]
[1680543586026,0.012472,28061.0,28059.0,0.04124908]
[1680543586243,0.012472,28061.0,28059.0,0.04324908]
[1680543587322,0.012663,28060.0,28059.0,0.04124908]
[1680543587543,0.025136,28060.0,28059.0,0.04224908]
[1680543587760,0.012473,28060.0,28059.0,0.04124908]
[1680543587969,0.012473,28060.0,28059.0,0.04324908]
[1680543588229,0.024831,28060.0,28059.0,0.04124908]
[1680543588467,0.035831,28060.0,28059.0,0.04224908]
[1680543588696,0.024831,28060.0,28059.0,0.04124908]
[1680543588915,0.024831,28060.0,28059.0,0.04324908]
[1680543589143,0.024831,28060.0,28059.0,0.06415895]
[1680543589363,0.024831,28060.0,28059.0,0.06215895]
[1680543589364,0.21169441,28060.0,28059.0,0.06215895]
[1680543589616,0.0782976,28060.0,28059.0,0.06215895]
[1680543590072,0.0782976,28060.0,28059.0,0.04124908]
[1680543590298,0.0892976,28060.0,28059.0,0.04224908]
[1680543590505,0.22019441,28060.0,28059.0,0.04124908]
[1680543590728,0.4,28058.0,28055.0,0.02083434]
[1680543590964,0.4,28058.0,28055.0,0.02065434]
[1680543590965,0.1692,28056.0,28055.0,0.02065434]
[1680543591190,0.603181,28056.0,28055.0,0.02065434]
[1680543591419,0.979081,28056.0,28055.0,0.02065434]